bitfinex/quotes_ETHUSD_20250630
["timestamp","ask_amount","ask_price","bid_price","bid_amount"]
[1751292585018,0.2032,2453.0,2452.8,4.07685346]
[1751292585219,10.189,2453.1,2452.9,4.07680704]
[1751292585421,0.2232,2453.4,2453.1,4.07644257]
[1751292585630,2.53747766,2454.5,2453.7,4.07547784]
[1751292585836,1.18623522,2454.7,2453.7,26.1899483]
[1751292586128,1.38943522,2454.9,2453.7,26.1899483]
[1751292586495,0.2032,2454.9,2453.7,16.30680535]
[1751292586738,2.051,2454.6,2453.7,16.2022905]
[1751292587226,0.2032,2454.7,2453.7,16.2022905]
[1751292587541,0.788,2454.7,2453.7,5.07157784]
[1751292587826,0.788,2454.7,2453.7,0.2032]
[1751292587827,2.2542,2454.1,2453.7,0.2032]
[1751292588020,6.32902502,2454.1,2453.7,0.2032]
[1751292588396,2.2542,2454.1,2453.7,4.27867784]
[1751292588798,0.788,2454.7,2453.7,4.27867784]
[1751292588799,2.05,2454.0,2453.7,4.27867784]
[1751292589302,2.05,2454.3,2453.7,4.27867784]
[1751292589499,6.12453964,2454.3,2453.7,4.27867784]
[1751292589819,2.2532,2454.3,2453.7,4.27867784]
[1751292590020,2.2532,2454.3,2453.7,0.2032]
[1751292590219,6.12453335,2454.3,2453.7,0.2032]
[1751292590528,4.07507206,2454.0,2453.4,4.07594058]
[1751292590834,5.07076494,2454.0,2453.5,4.27900942]
[1751292591138,5.07076494,2454.0,2453.5,4.27896797]
[1751292591345,2.059,2453.7,2453.5,0.2032]
[1751292591544,4.28362757,2453.6,2453.1,4.07646134]
[1751292591750,6.33768573,2453.7,2453.2,4.2794682]
[1751292592536,0.2032,2453.7,2453.2,0.2032]
[1751292592721,0.2032,2453.7,2453.0,0.7935]
[1751292592722,2.058,2453.6,2453.5,4.07571633]
[1751292592924,2.058,2453.7,2453.6,4.07563086]
[1751292593099,2.058,2453.7,2453.5,4.27893486]
[1751292593306,2.058,2453.7,2453.5,0.01]
[1751292593913,2.058,2453.7,2453.5,4.08580413]
[1751292594112,2.058,2453.7,2453.5,0.01]
[1751292594514,0.2232,2453.8,2453.7,4.07547784]
[1751292594730,2.078,2453.8,2453.7,4.27867784]
[1751292594912,2.078,2453.8,2453.7,5.90709002]
[1751292595139,0.02,2453.8,2453.7,5.90709002]
[1751292595940,0.02,2453.8,2453.7,4.27867784]
[1751292597445,0.02,2453.8,2453.7,5.09747784]
[1751292597617,0.02,2453.9,2453.8,8.81531176]
[1751292597938,0.02,2453.9,2453.8,27.58381176]
[1751292598338,0.02,2453.9,2453.8,34.99201176]
[1751292599303,0.02,2453.9,2453.8,27.78701176]
[1751292599703,0.02,2453.9,2453.8,17.78701176]
[1751292600539,0.02,2453.9,2453.8,4.9432]
[1751292600907,0.02,2453.9,2453.5,0.01]
[1751292601107,0.2232,2453.9,2453.5,4.28885377]
[1751292601415,2.058,2453.8,2453.7,0.2032]
[1751292601733,0.02,2453.9,2453.7,0.2032]
[1751292601928,4.07531176,2453.8,2453.5,0.01]
[1751292602132,6.35642444,2453.9,2453.5,0.2132]
[1751292602448,2.078,2453.9,2453.5,0.01]
[1751292602650,0.2032,2453.8,2453.5,0.01]
[1751292602952,6.1532619,2453.9,2453.5,0.01]
[1751292602953,0.02,2453.9,2453.7,14.07547784]
[1751292603256,0.02,2453.9,2453.8,14.07531176]
[1751292605349,0.02,2453.9,2453.8,14.08531176]
[1751292606015,0.02,2453.9,2453.8,4.08531176]
[1751292607614,0.02,2453.9,2453.8,14.08531176]
[1751292607814,0.02,2453.9,2453.8,15.19478862]
[1751292609829,0.02,2453.9,2453.8,15.97388862]
[1751292610146,2.078,2454.8,2454.7,4.07381757]
[1751292610322,2.078,2454.8,2454.7,8.79381757]
[1751292610521,6.15165162,2454.8,2454.7,4.72]
[1751292610830,0.8121,2454.6,2453.9,4.72]
[1751292611031,2.058,2454.5,2454.0,4.72]
[1751292611765,0.8121,2454.6,2454.4,4.07420046]
[1751292612048,2.058,2454.5,2454.4,4.07420046]
[1751292612249,2.058,2454.7,2454.1,5.4742]
[1751292612434,2.058,2454.7,2454.2,4.6220223]
[1751292612636,2.058,2454.7,2454.4,4.07421084]
[1751292612947,2.2612,2454.7,2454.4,4.07421084]
[1751292613244,2.2612,2454.7,2454.3,4.07447415]
[1751292613453,2.2612,2454.7,2454.3,4.07435002]
[1751292613657,0.2032,2454.7,2454.3,0.8235]
[1751292613814,0.7959,2454.8,2454.7,4.07381757]
[1751292614019,0.7959,2454.8,2454.6,0.2032]
[1751292614380,0.7959,2454.8,2454.5,4.07407477]
[1751292614647,0.9991,2454.8,2454.5,4.07414483]
[1751292614849,0.9991,2454.8,2454.4,8.99742932]
[1751292615052,2.62150139,2454.8,2454.4,8.99742932]
[1751292615226,6.69528169,2454.8,2454.4,4.9232]
[1751292615427,4.07391993,2454.7,2454.4,4.72]
[1751292615674,0.2032,2454.5,2454.2,4.72]
[1751292615873,0.2032,2454.5,2454.2,8.79454678]
[1751292616059,9.249,2454.4,2454.2,8.79454678]
[1751292616261,9.249,2454.4,2454.2,4.72]
[1751292616464,14.26866404,2454.4,2454.3,4.72]
[1751292616652,15.06626404,2454.4,2454.3,4.72]
[1751292616980,2.058,2454.4,2454.3,4.72]
[1751292617145,9.245,2454.4,2454.3,4.72]
[1751292618043,0.02,2454.5,2454.3,4.72]
[1751292618241,9.245,2454.4,2454.3,4.72]
[1751292618476,9.245,2454.4,2454.3,8.79448152]
[1751292618677,9.245,2454.4,2454.3,4.72]
[1751292618844,0.02,2454.5,2454.3,4.72]
[1751292619248,9.236,2454.4,2454.3,4.72]
[1751292619443,0.02,2454.5,2454.3,4.9232]
[1751292619647,9.235,2454.4,2454.3,4.9232]
[1751292619970,9.235,2454.4,2454.3,8.99768152]
[1751292620144,0.02,2454.5,2454.4,4.07431551]
[1751292620343,9.252,2454.5,2454.3,8.99768152]
[1751292620577,0.02,2454.5,2454.3,4.9232]
[1751292620781,9.23,2454.4,2454.3,8.99768065]
[1751292620981,0.02,2454.5,2454.3,4.9232]
[1751292621181,0.02,2454.5,2454.4,4.07431551]
[1751292621388,0.02,2454.5,2454.4,8.79431551]
[1751292621684,9.219,2454.5,2454.4,8.99751551]
[1751292621979,0.02,2454.5,2454.4,8.99751551]
[1751292623280,0.02,2454.5,2454.4,9.82561551]
[1751292623449,0.02,2454.5,2454.4,19.82561551]
[1751292624583,0.02,2454.5,2454.4,27.80561551]
[1751292626090,0.02,2454.5,2454.4,16.97751551]
[1751292626756,0.02,2454.5,2454.4,12.9032]
[1751292626953,0.02,2454.5,2454.4,12.7]
[1751292627785,5.10567048,2454.5,2454.3,0.2032]
[1751292627960,0.7735,2454.4,2454.0,4.9232]
[1751292628289,4.07481357,2454.1,2454.0,4.72]
[1751292628488,4.07504623,2454.0,2453.8,0.01]
[1751292628684,6.10614568,2453.9,2453.8,0.01]
[1751292628885,2.031,2453.9,2453.8,0.01]
[1751292629266,7.08284568,2453.9,2453.8,0.01]
[1751292629467,7.63284568,2453.9,2453.8,0.01]
[1751292629668,19.59992451,2453.9,2453.8,0.01]
[1751292630066,17.56892451,2453.9,2453.8,0.01]
[1751292630266,26.74792451,2453.9,2453.8,0.01]
[1751292630968,26.74892451,2453.9,2453.8,0.01]
[1751292632801,5.42794395,2453.6,2453.5,0.01]
[1751292632984,15.42794395,2453.6,2453.5,0.01]
[1751292633170,45.42794395,2453.6,2453.5,0.01]
[1751292633370,4.62664084,2453.0,2452.9,0.01]
[1751292633561,34.29474084,2453.0,2452.9,0.01]
[1751292633761,44.62680704,2452.9,2452.8,0.01]
[1751292633965,44.93790704,2452.9,2452.8,0.01]
[1751292634365,44.93790704,2452.9,2451.6,0.2032]
[1751292634366,4.90984332,2452.1,2451.6,4.28215509]
[1751292634559,9.3802,2452.0,2451.6,4.28215509]
[1751292634793,9.177,2451.9,2451.8,4.0786361]
[1751292635293,0.2032,2452.0,2451.9,4.07846975]
[1751292635467,1.3105,2452.4,2451.9,4.07846975]
[1751292635672,1.3105,2452.4,2451.8,4.07860764]
[1751292635673,0.2032,2452.2,2452.1,4.07803904]
[1751292635869,9.172,2452.2,2452.1,4.07803904]
[1751292636092,0.55,2452.9,2452.4,4.07763823]
[1751292636093,0.2032,2452.5,2452.4,4.07763823]
[1751292636302,9.3752,2452.5,2452.3,4.07779114]
[1751292636499,0.7605,2452.7,2452.5,4.07737317]
[1751292636701,9.172,2452.6,2452.5,4.07737317]
[1751292636899,9.171,2452.6,2452.5,4.07737317]
[1751292637093,9.171,2452.6,2452.3,4.0777432]
[1751292637406,0.2032,2452.5,2452.1,4.0781371]
[1751292637567,9.168,2452.4,2452.3,4.28091053]
[1751292637766,9.171,2452.4,2452.3,4.28091053]
[1751292639113,10.189,2452.8,2452.7,4.07713947]
[1751292639319,10.189,2452.8,2452.5,0.8203]
[1751292639320,7.137,2452.8,2452.5,0.8203]
[1751292639593,7.137,2452.8,2452.7,4.28033947]
[1751292639829,4.07520134,2453.9,2452.8,4.07696459]
[1751292639963,4.07520134,2453.9,2453.2,4.07623563]
[1751292639964,9.17,2453.6,2453.2,4.07623563]
[1751292640163,9.17,2453.6,2453.1,0.2032]
[1751292640164,10.3921,2453.6,2453.1,0.2032]
[1751292640396,10.3921,2453.6,2453.2,4.07630342]
[1751292640574,10.3921,2453.6,2453.1,4.27957446]
[1751292640769,4.075815,2453.5,2453.0,4.07647985]
[1751292640998,0.2032,2453.2,2452.8,0.2032]
[1751292641179,7.134,2453.1,2452.9,4.07680223]
[1751292641493,2.033,2453.0,2452.8,0.2032]
[1751292641664,2.033,2453.0,2452.8,4.28015313]
[1751292642164,2.033,2453.0,2452.8,0.2032]
[1751292642596,0.2032,2452.9,2452.5,4.28053104]
[1751292642804,1.34465925,2453.0,2452.2,0.7979]
[1751292643098,9.3662,2452.9,2452.7,4.07703306]
[1751292643394,0.2032,2452.9,2452.7,4.07703306]
[1751292643598,9.163,2452.8,2452.4,4.28076348]
[1751292643898,9.163,2452.8,2452.6,4.07729123]
[1751292644093,0.2032,2452.9,2452.7,4.07704882]
[1751292644293,9.16,2452.8,2452.6,4.07722926]
[1751292644863,9.16,2452.8,2452.7,4.07713947]
[1751292645091,0.2032,2452.9,2452.7,4.07713947]
[1751292645397,9.157,2452.8,2452.5,4.07738823]
[1751292645601,1.3204,2452.7,2452.3,4.72]
[1751292645807,10.50070364,2452.8,2452.3,4.72]
[1751292645808,9.151,2452.6,2452.4,4.07748133]
[1751292646001,0.2032,2452.8,2452.7,4.07713947]
[1751292646179,9.3542,2452.8,2452.5,4.07738693]
[1751292646383,9.3542,2452.8,2452.4,4.28076268]
[1751292646910,15.2590698,2452.8,2452.4,4.28083512]
[1751292647507,4.07784094,2452.3,2451.5,4.90331833]
[1751292647667,4.07784094,2452.3,2451.9,4.07846918]
[1751292647668,9.154,2452.2,2451.9,4.07846918]
[1751292647869,9.154,2452.2,2451.8,0.2032]
[1751292647870,9.154,2452.2,2452.0,4.0782975]
[1751292648073,9.154,2452.2,2452.1,4.0781371]
[1751292648273,0.7848,2452.6,2452.2,4.0779708]
[1751292648493,0.988,2452.6,2452.4,4.07754303]
[1751292648700,0.2032,2452.6,2452.5,4.07747196]
[1751292648882,0.55,2453.1,2452.8,4.07685982]
[1751292649080,0.9684,2453.2,2453.0,4.07662907]
[1751292649285,9.151,2453.1,2453.0,4.07662907]
[1751292649699,9.151,2453.1,2452.9,4.07671994]
[1751292650024,0.9684,2453.2,2453.0,4.07662349]
[1751292650200,0.9684,2453.2,2452.9,4.07668797]
[1751292650201,9.149,2453.0,2452.9,4.07668797]
[1751292650576,2.033,2453.0,2452.9,4.07668797]
[1751292650800,9.145,2453.0,2452.9,4.07668797]
[1751292650975,9.143,2453.0,2452.9,4.07668797]
[1751292651604,0.9684,2453.2,2452.8,4.28011981]
[1751292651788,9.103,2453.0,2452.9,4.07679765]
[1751292652401,9.097,2453.0,2452.9,4.07679765]
[1751292652598,9.097,2453.0,2452.9,4.07680704]
[1751292652799,9.097,2453.0,2452.9,8.79680704]
[1751292653419,1.0189,2453.6,2453.1,4.07647466]
[1751292653714,9.2942,2453.5,2453.2,4.07619737]
[1751292653914,9.2942,2453.5,2453.3,4.07611956]
[1751292654323,0.2032,2453.5,2453.3,4.07611956]
[1751292654619,9.087,2453.4,2453.3,4.07611956]
[1751292654793,9.086,2453.4,2453.3,8.79611956]
[1751292655324,0.2032,2453.5,2453.4,4.07597619]
[1751292655482,9.083,2453.5,2453.4,4.07597619]
[1751292655988,9.083,2453.5,2453.3,4.9232]
[1751292656299,10.37218955,2453.5,2453.3,4.72]
[1751292656688,9.083,2453.5,2453.3,4.72]
[1751292656888,10.189,2453.7,2453.5,4.07581006]
[1751292657116,9.079,2453.6,2453.5,4.07581006]
[1751292657419,10.3922,2453.7,2453.6,4.07564395]
[1751292657621,19.4722,2453.7,2453.5,4.0757424]
[1751292658010,19.4722,2453.7,2453.6,4.07564395]
[1751292658531,19.4722,2453.7,2453.4,4.72]
[1751292658700,2.02751,2453.6,2453.4,8.79588223]
[1751292658905,19.4722,2453.7,2453.4,8.79588223]
[1751292659235,10.189,2453.7,2453.6,4.07564395]
[1751292659525,10.189,2453.7,2453.6,8.79564395]
[1751292659526,19.26,2453.7,2453.6,8.79564395]
[1751292659731,19.26,2453.7,2453.6,8.99884395]
[1751292659951,12.182,2453.7,2453.6,8.99884395]
[1751292660235,12.182,2453.7,2453.6,10.10916301]
[1751292660236,17.264,2453.7,2453.6,10.10916301]
[1751292660444,2.013,2453.9,2453.8,4.82791176]
[1751292660619,2.013,2453.9,2453.8,9.54791176]
[1751292660790,0.02,2453.9,2453.8,9.75111176]
[1751292661138,0.02,2453.9,2453.8,28.15918606]
[1751292661639,2.013,2454.5,2454.2,4.07464754]
[1751292661794,0.02,2454.5,2454.4,4.88371551]
[1751292661989,0.02,2454.5,2454.4,9.76691551]
[1751292662221,0.02,2454.5,2454.4,10.87723457]
[1751292664198,0.02,2454.5,2454.4,8.95751551]
[1751292665126,0.02,2454.5,2454.4,4.8832]
[1751292665426,0.02,2454.5,2454.4,8.95751551]
[1751292665634,0.02,2454.5,2454.4,4.8832]
[1751292665926,0.02,2454.5,2454.4,9.74691551]
[1751292667607,0.02,2454.8,2454.7,4.07381757]
[1751292667813,0.02,2454.8,2454.7,8.93701757]
[1751292669414,2.012,2454.8,2454.7,8.93701757]
[1751292670028,0.02,2454.8,2454.7,16.91701757]
[1751292670243,0.02,2454.8,2454.7,8.93701757]
[1751292670845,0.02,2454.8,2454.7,36.15133674]
[1751292671046,0.02,2454.8,2454.7,24.06133674]
[1751292671351,0.02,2455.5,2455.4,4.87335618]
[1751292671732,0.02,2455.5,2455.4,5.07655618]
[1751292671927,1.992,2456.2,2456.1,4.07149546]
[1751292672248,2.0101668,2456.7,2456.6,4.07066677]
[1751292672547,2.0101668,2456.7,2456.6,0.2032]
[1751292673249,0.0181668,2456.7,2456.6,5.09346677]
[1751292673954,0.0181668,2456.7,2456.6,6.00989544]
[1751292674940,1.991,2457.5,2456.7,10.0]
[1751292675144,1.991,2457.5,2457.3,4.06945067]
[1751292675343,0.7768,2457.7,2457.6,4.06901041]
[1751292675344,0.02,2457.7,2457.6,4.06901041]
[1751292675847,0.02,2457.7,2456.6,0.91642867]
[1751292676061,0.02,2457.7,2457.4,4.06932075]
[1751292676262,0.02,2457.7,2457.1,0.8101]
[1751292676417,0.02,2457.7,2457.6,4.06901041]
[1751292676619,1.991,2458.9,2457.6,25.48261917]
[1751292676819,0.2178843,2459.2,2458.6,14.8483554]
[1751292677326,0.2178843,2459.2,2459.1,14.0665284]
[1751292677523,0.2178843,2459.2,2459.0,0.7754]
[1751292677723,0.2178843,2459.2,2458.6,4.8427148]
[1751292678031,0.2178843,2459.2,2458.2,0.7754]
[1751292678230,0.8038,2459.1,2458.1,10.0]
[1751292678548,0.8038,2459.1,2457.9,0.7754]
[1751292678549,0.02,2458.7,2457.9,0.7754]
[1751292678950,4.06744463,2458.6,2457.6,10.0]
[1751292679152,0.02,2458.7,2458.0,4.06826935]
[1751292679333,4.06736312,2458.6,2458.0,4.06826935]
[1751292679524,0.40873631,2458.5,2457.6,4.06901041]
[1751292679727,4.06810209,2458.2,2457.6,4.06892147]
[1751292680138,4.06810209,2458.2,2457.1,4.87203514]
[1751292680139,4.06800765,2458.3,2457.7,4.06883534]
[1751292680354,4.06800765,2458.3,2457.2,14.06962718]
[1751292680355,1.99,2458.2,2457.9,4.06837501]
[1751292680555,1.99,2458.2,2457.3,4.06942952]
[1751292680556,1.99,2458.2,2458.1,4.06818274]
[1751292680770,10.02,2458.7,2457.6,18.43361917]
[1751292681063,1.99,2458.6,2458.2,4.06800598]
[1751292681471,1.99,2458.6,2458.1,4.0681006]
[1751292681760,1.99,2458.6,2458.5,4.06752084]
[1751292681921,2.004,2458.7,2458.0,10.0]
[1751292682122,2.004,2458.7,2458.6,4.0673554]
[1751292682329,2.004,2458.7,2458.5,4.06741859]
[1751292682554,2.004,2458.7,2458.1,4.47494435]
[1751292682758,2.004,2458.7,2457.8,0.7543]
[1751292682973,0.81,2458.5,2457.8,0.7543]
[1751292683126,0.81,2458.5,2457.9,4.06851377]
[1751292683339,1.984,2458.5,2458.4,4.06764081]
[1751292683566,2.8926,2458.5,2458.0,4.06823352]
[1751292683749,2.8926,2458.5,2457.6,8.43361917]
[1751292683952,6.96022896,2458.5,2457.9,4.06844637]
[1751292684167,6.96015566,2458.5,2457.9,4.0683769]
[1751292684329,0.69601557,2458.4,2458.0,4.06821838]
[1751292684528,0.69601557,2458.4,2457.9,4.06850793]
[1751292684764,2.8926,2458.5,2458.1,4.0680994]
[1751292684965,2.8926,2458.5,2457.7,10.0]
[1751292684966,2.8926,2458.5,2458.3,4.06785167]
[1751292685264,2.8926,2458.5,2458.1,4.06806246]
[1751292685565,2.8926,2458.5,2458.2,0.2032]
[1751292685566,6.96015742,2458.5,2458.2,0.2032]
[1751292685864,4.35704118,2458.4,2458.2,0.2032]
[1751292686064,4.56024118,2458.4,2458.0,0.2032]
[1751292686371,4.56024118,2458.4,2457.2,19.57620139]
[1751292686372,0.8115,2458.3,2457.5,4.06905845]
[1751292686554,0.8115,2458.3,2457.5,4.06917041]
[1751292686555,0.2032,2457.9,2457.5,4.06917041]
[1751292686738,1.984,2457.8,2457.4,4.27245325]
[1751292686944,7.073,2457.7,2456.8,0.7954]
[1751292687152,1.0315,2457.6,2457.1,0.2032]
[1751292687464,4.06992542,2457.1,2456.6,4.07057245]
[1751292687669,4.06992542,2457.1,2456.2,4.07124198]
[1751292687670,25.06845543,2457.6,2456.9,4.07016972]
[1751292687829,14.06936156,2457.4,2456.8,4.07024361]
[1751292688029,14.0694417,2457.4,2456.8,4.0701963]
[1751292688361,14.0694417,2457.4,2456.9,4.07014522]
[1751292688766,4.06958077,2457.3,2456.8,4.07022902]
[1751292688963,14.06942177,2457.4,2456.9,4.07014992]
[1751292689163,14.01332424,2457.4,2457.1,4.06982691]
[1751292689464,12.11584554,2457.5,2457.2,4.06957947]
[1751292689465,9.052,2457.3,2457.2,4.06957947]
[1751292689645,1.983,2457.3,2457.2,4.06957947]
[1751292690330,1.983,2457.3,2457.1,4.06981937]
[1751292690531,1.983,2457.3,2457.2,4.06967279]
[1751292692295,1.983,2457.3,2457.1,4.06977069]
[1751292692661,1.983,2457.3,2457.2,4.06967279]
[1751292693090,10.9993,2457.6,2457.5,4.06917599]
[1751292693292,10.9993,2457.6,2457.4,4.06922046]
[1751292693293,19.21,2457.6,2457.4,4.06922046]
[1751292693593,10.171,2457.6,2457.5,4.06917599]
[1751292693897,0.7608,2457.9,2457.8,4.0686793]
[1751292693898,1.984,2457.9,2457.8,4.0686793]
[1751292694773,1.984,2458.3,2458.2,4.06801724]
[1751292695396,10.171,2458.5,2458.1,4.06810241]
[1751292695561,1.984,2458.3,2458.2,4.06801724]
[1751292695980,1.984,2458.3,2457.9,4.06839869]
[1751292696259,1.984,2458.3,2457.1,8.43361917]
[1751292696260,4.9719641,2458.2,2457.1,8.43361917]
[1751292696472,0.9038,2458.2,2457.1,10.0]
[1751292696672,4.97188881,2458.2,2457.7,4.06876504]
[1751292696891,0.69558888,2458.1,2457.7,4.06876504]
[1751292697191,7.05,2458.0,2457.7,4.06880282]
[1751292697496,7.05,2458.0,2457.7,0.2032]
[1751292697996,8.0349,2458.0,2457.7,4.06884276]
[1751292698159,9.40513768,2458.0,2457.8,4.06867499]
[1751292698569,9.03,2457.9,2457.8,4.06867499]
[1751292698987,9.03,2457.9,2457.5,4.27230509]
[1751292699194,9.03,2457.9,2457.5,4.2722969]
[1751292699358,9.03,2457.9,2457.6,4.06897555]
[1751292699563,14.71342761,2457.9,2457.5,0.2032]
[1751292699758,4.06915159,2457.6,2456.8,4.08026602]
[1751292699957,4.27262206,2457.4,2456.9,4.27329581]
[1751292700156,1.983,2457.3,2456.9,4.27329581]
[1751292700356,4.06955238,2457.3,2456.9,0.2032]
[1751292700596,0.2032,2457.4,2457.2,4.06960948]
[1751292700769,9.028,2457.3,2457.2,4.06960948]
[1751292701158,9.026,2457.3,2457.2,4.06960948]
[1751292701391,9.026,2457.3,2457.1,4.06976893]
[1751292701563,9.94892,2457.3,2457.0,4.27319401]
[1751292701770,9.94892,2457.3,2457.1,4.06980504]
[1751292701771,9.026,2457.3,2457.1,4.06980504]
[1751292701979,9.026,2457.3,2457.1,0.01]
[1751292702304,4.61967279,2457.2,2457.1,0.01]
[1751292702598,1.3545,2457.2,2457.1,0.01]
[1751292702770,5.42417279,2457.2,2457.1,0.01]
[1751292703091,7.27614173,2457.2,2457.1,0.01]
[1751292704072,17.27614173,2457.2,2457.1,0.01]
[1751292704696,13.20646894,2457.2,2457.1,0.01]
[1751292704899,22.22346894,2457.2,2457.1,0.01]
[1751292705071,26.29314173,2457.2,2457.1,0.01]
[1751292705805,4.06866567,2457.9,2457.1,0.01]
[1751292705806,0.8275,2457.6,2457.1,0.01]
[1751292706014,1.984,2457.5,2457.1,0.2132]
[1751292706169,1.984,2457.5,2457.1,0.01]
[1751292706369,0.2032,2457.3,2457.1,0.01]
[1751292706598,7.039,2457.2,2457.1,0.01]
[1751292707112,9.025,2457.2,2457.1,0.01]
[1751292708070,10.35475619,2457.2,2457.1,0.01]
[1751292708464,14.42442898,2457.2,2457.1,0.01]
[1751292708667,10.35475619,2457.2,2457.1,0.01]
[1751292708866,10.8275,2457.6,2457.2,4.06967279]
[1751292709088,0.2032,2457.5,2457.4,4.06934158]
[1751292709311,9.2252,2457.5,2457.4,4.06934158]
[1751292709597,9.2252,2457.5,2457.4,0.378996]
[1751292709801,9.2252,2457.5,2457.4,4.44833758]
[1751292710794,0.2032,2457.5,2457.4,4.44833758]
[1751292710983,9.02,2457.6,2457.5,4.06916628]
[1751292711187,0.2032,2457.9,2457.8,4.0686793]
[1751292711390,2.8056,2458.4,2458.3,4.06785176]
[1751292711587,2.8056,2458.4,2458.2,4.0680036]
[1751292711788,2.8056,2458.4,2458.3,4.06785176]
[1751292712012,1.984,2458.4,2458.3,4.06785176]
[1751292712200,9.025,2458.4,2458.3,4.06785176]
[1751292712579,0.02,2458.7,2458.6,4.0673554]
[1751292712780,1.977,2458.7,2458.6,4.0673554]
[1751292713102,0.02,2458.7,2458.6,4.0673554]
[1751292714079,0.02,2458.7,2458.6,4.44669687]
[1751292714277,0.02,2458.7,2458.6,5.39515544]
[1751292714533,0.02,2458.7,2458.6,5.59824135]
[1751292714679,0.02,2458.7,2458.6,5.39504135]
[1751292715303,0.02,2458.7,2458.6,5.39503655]
[1751292715503,0.02,2458.7,2458.6,5.01581397]
[1751292716300,0.02,2458.7,2458.6,4.0673554]
[1751292717180,7.041,2458.7,2458.4,4.06753879]
[1751292717379,7.041,2458.7,2458.4,4.06765909]
[1751292717678,7.041,2458.7,2458.1,0.8011]
[1751292717901,7.041,2458.7,2458.5,4.06744019]
[1751292718096,11.65033776,2458.7,2458.2,4.06794593]
[1751292718318,7.58307507,2458.7,2458.3,4.44686712]
[1751292718609,7.041,2458.7,2458.4,4.44664264]
[1751292718819,11.10820006,2458.7,2458.3,4.06777709]
[1751292719013,11.10820006,2458.7,2458.4,0.37892974]
[1751292719216,4.06752084,2458.5,2458.0,4.06827981]
[1751292719384,12.8978565,2458.7,2458.1,4.44695763]
[1751292719590,8.83065644,2458.7,2458.2,0.37886199]
[1751292719800,4.06744153,2458.6,2458.3,0.37886199]
[1751292719997,4.06744153,2458.6,2458.4,0.37886199]
[1751292720197,11.10823867,2458.7,2458.5,0.37886218]
[1751292720426,11.10823867,2458.7,2458.2,4.06801724]
[1751292720631,4.0673554,2458.6,2458.3,0.37877505]
[1751292720846,0.8011,2458.3,2457.5,4.06917599]
[1751292721125,4.0674243,2458.6,2457.7,4.06884485]
[1751292721315,1.956,2458.3,2458.1,4.06807967]
[1751292721517,1.956,2458.3,2458.2,4.44681885]
[1751292721732,7.018,2458.4,2458.3,4.06784537]
[1751292722031,0.8011,2458.2,2457.2,3.23155809]
[1751292722241,0.8011,2458.2,2457.9,4.0684426]
[1751292722537,1.956,2458.2,2458.1,4.06806819]
[1751292722724,1.956,2458.2,2458.1,0.37873854]
[1751292722902,8.981,2458.2,2458.1,0.37873854]
[1751292723103,0.8011,2458.5,2458.1,0.82343831]
[1751292723104,1.956,2458.4,2458.1,0.82343831]
[1751292723304,1.956,2458.4,2458.2,0.37873854]
[1751292723515,1.956,2458.4,2458.3,0.37873854]
[1751292724139,6.0236863,2458.4,2458.3,0.37873854]
[1751292724338,2.506,2458.4,2458.3,0.37873854]
[1751292724647,0.2032,2458.4,2458.3,4.4465903]
[1751292724847,0.2032,2458.4,2458.3,0.37873854]
[1751292724848,9.1862,2458.4,2458.3,0.37873854]
[1751292725829,13.2538863,2458.4,2458.3,0.37873854]
[1751292726029,9.1862,2458.4,2458.3,0.37873854]
[1751292727950,9.1862,2458.4,2458.3,4.4465903]
[1751292728130,9.1862,2458.4,2458.3,0.37873854]
[1751292728317,0.2032,2458.4,2458.3,0.37873854]
[1751292728523,0.02,2458.7,2458.6,14.0673554]
[1751292728728,0.02,2458.7,2458.6,14.44609394]
[1751292730451,0.02,2458.7,2458.6,14.0673554]
[1751292731960,0.02,2458.7,2458.6,4.0673554]
[1751292732341,0.02,2458.7,2458.5,4.06742492]
[1751292732542,0.02,2458.7,2458.6,4.0673554]
[1751292733664,0.02,2458.7,2458.6,4.88083343]
[1751292735282,0.02,2458.7,2458.6,4.0673554]
[1751292737386,0.02,2458.7,2458.6,23.32947457]
[1751292737588,0.2178843,2459.2,2459.1,14.8950284]
[1751292737751,0.2178843,2459.2,2459.1,23.32864757]
[1751292738662,0.02,2459.7,2459.6,4.06570174]
[1751292738867,0.02,2459.7,2459.6,15.85077191]
[1751292739478,0.02,2459.7,2459.6,15.30077191]
[1751292740385,0.02,2459.7,2459.6,4.47227191]
[1751292744368,0.02,2459.7,2459.6,20.05347191]
[1751292746261,0.02,2459.7,2459.6,20.60347191]
[1751292746498,0.02,2460.0,2459.9,4.8775059]
[1751292746707,0.02,2460.0,2459.9,21.49394826]
[1751292747604,0.02,2460.0,2459.9,26.25394826]
[1751292748808,0.02,2460.0,2459.9,26.45714826]
[1751292749106,0.02,2460.0,2459.9,26.44714826]
[1751292749472,0.01,2460.7,2460.6,4.06404941]
[1751292749673,0.01,2460.7,2460.6,4.47045435]
[1751292749904,0.01,2460.7,2460.6,4.67285435]
[1751292750268,0.01,2460.7,2460.6,0.60880494]
[1751292750518,0.02,2461.2,2460.9,4.82045398]
[1751292750802,0.02,2461.2,2461.1,14.06322376]
[1751292751014,0.02,2461.2,2461.1,14.43987595]
[1751292751184,0.02,2461.2,2461.1,14.06322376]
[1751292752092,0.02,2461.2,2461.1,21.16022376]
[1751292752322,0.02,2461.2,2461.1,21.71022376]
[1751292752610,0.02,2461.2,2461.1,22.08627604]
[1751292752784,0.02,2461.2,2461.1,21.53927604]
[1751292753412,0.02,2461.2,2461.1,22.32307604]
[1751292753908,0.02,2461.2,2461.1,15.22307604]
[1751292754105,0.02,2461.2,2461.1,15.22280621]
[1751292754511,0.02,2461.2,2461.1,0.37578245]